fUSD/lending_fUSD_20250127
["ID","MTS","AMOUNT","RATE_DAILY","PERIOD"]
[350524248,1737943838685,-173.00688574,0.000159,2]
[350524249,1737943838694,-24868.67177153,0.000159,2]
[350524252,1737943838708,-6596.03655,0.000159,2]
[350524254,1737943838720,-24090.29167847,0.000159,2]
[350524256,1737943838729,-64124.4189315,0.000159,2]
[350524258,1737943838738,-850.49759677,0.00015918,2]
[350524260,1737943838748,-196.274035,0.0001595,3]
[350524262,1737943838757,-242.529989,0.0001595,3]
[350524264,1737943838767,-155.704376,0.0001595,3]
[350524266,1737943838776,-850.49759677,0.00015973,2]
[350524268,1737943838786,-500.0,0.00015973,2]
[350524270,1737943838796,-504.0317045,0.00015973,2]
[350524272,1737943838805,-1000.0,0.00015987,2]
[350524274,1737943838815,-500.0,0.00015997,2]
[350524276,1737943838824,-562.62931879,0.00015997,2]
[350524278,1737943838834,-557.54264727,0.00015997,2]
[350524280,1737943838842,-168.01036593,0.00015997,2]
[350524282,1737943838851,-560.15037418,0.00015997,2]
[350524284,1737943838860,-500.0,0.00015997,2]
[350524286,1737943838869,-500.0,0.00015997,2]
[350524288,1737943838878,-500.0,0.00015997,2]
[350524290,1737943838888,-500.0,0.00015997,2]
[350524292,1737943838897,-1803.38,0.00015997,2]
[350524294,1737943838906,-534.05311226,0.00015997,2]
[350524296,1737943838915,-500.0,0.00015997,2]
[350524298,1737943838925,-1150.80146866,0.00015997,3]
[350524300,1737943838934,-149.18680491,0.00015998,2]
[350524302,1737943838950,-259.22589339,0.00015998,2]
[350524304,1737943838960,-530.84931526,0.00015998,2]
[350524306,1737943838969,-500.0,0.00015998,2]
[350524308,1737943838979,-500.0,0.00015998,2]
[350524310,1737943838989,-530.82650469,0.00015998,2]
[350524311,1737943838999,-500.0,0.00015998,2]
[350524313,1737943839008,-500.0,0.00015998,2]
[350524315,1737943839020,-500.0,0.00015998,2]
[350524317,1737943839029,-500.0,0.00015998,2]
[350524319,1737943839038,-472.31781597,0.00015998,2]
[350524322,1737943839050,-27.68218403,0.00015998,2]
[350524324,1737943839060,-285.36423172,0.00015998,2]
[350524326,1737943839071,-214.63576828,0.00015998,2]
[350524328,1737943839080,-106.92158185,0.00015998,2]
[350524330,1737943839090,-420.31907454,0.00015998,2]
[350524332,1737943839100,-500.0,0.00015998,2]
[350524334,1737943839108,-521.44531434,0.00015998,2]
[350524336,1737943839117,-500.0,0.00015998,2]
[350524337,1737943839126,-536.38735984,0.00015998,2]
[350524338,1737943839134,-500.0,0.00015998,2]
[350524339,1737943839144,-519.50989606,0.00015998,2]
[350524340,1737943839153,-523.63358867,0.00015998,2]
[350524341,1737943839162,-527.80061311,0.00015998,2]
[350524342,1737943839172,-416.06529374,0.00015998,2]
[350524343,1737943839182,-546.91851315,0.00015998,2]
[350524344,1737943839191,-574.8819543,0.00015998,2]
[350524345,1737943839204,-500.0,0.00015998,2]
[350524346,1737943839214,-540.9232778,0.00015998,2]
[350524347,1737943839223,-513.65278139,0.00015999,2]
[350524348,1737943839233,-536.67150612,0.00015999,2]
[350524349,1737943839244,-531.41694038,0.00015999,2]
[350524351,1737943839254,-518.54132088,0.00015999,2]
[350524353,1737943839263,-513.39583322,0.00015999,2]
[350524355,1737943839273,-515.08137349,0.00015999,2]
[350524357,1737943839282,-515.11892209,0.00015999,2]
[350524359,1737943839291,-520.90930822,0.00015999,2]
[350524361,1737943839301,-515.08970997,0.00015999,2]
[350524363,1737943839310,-500.0,0.00015999,2]
[350524365,1737943839319,-500.0,0.00015999,2]
[350524367,1737943839328,-86.13126979,0.00015999,2]
[350524370,1737943839340,-426.80748811,0.00015999,2]
[350524373,1737943839350,-505.95076392,0.00015999,2]
[350524375,1737943839359,-514.0935032,0.00015999,2]
[350524377,1737943839368,-500.0,0.00015999,2]
[350524379,1737943839378,-516.8360272,0.00015999,2]
[350524381,1737943839387,-513.08346764,0.00015999,2]
[350524383,1737943839396,-500.0,0.00015999,2]
[350524386,1737943839406,-510.88865354,0.00015999,2]
[350524388,1737943839415,-519.81207566,0.00015999,2]
[350524390,1737943839424,-542.24748893,0.00015999,2]
[350524391,1737943839433,-170.95977447,0.00015999,2]
[350524393,1737943839442,-514.93297662,0.00015999,2]
[350524396,1737943839455,-538.35846143,0.00015999,2]
[350524399,1737943839465,-521.61631744,0.00015999,2]
[350524401,1737943839474,-521.88104132,0.00015999,2]
[350524403,1737943839484,-500.0,0.00015999,2]
[350524405,1737943839497,-508.8372713,0.00015999,2]
[350524407,1737943839507,-531.0644554,0.00015999,2]
[350524409,1737943839516,-500.0,0.00015999,2]
[350524411,1737943839526,-540.69395534,0.00015999,2]
[350524412,1737943839536,-514.07785899,0.00015999,2]
[350524414,1737943839545,-503.78901118,0.00015999,2]
[350524416,1737943839554,-500.0,0.00015999,2]
[350524417,1737943839564,-633.15567361,0.00015999,2]
[350524418,1737943839573,-375.9460768,0.00015999,2]
[350524419,1737943839582,-504.66322141,0.00015999,2]
[350524420,1737943839592,-244.46262979,0.00015999,2]
[350524421,1737943839601,-591.01787258,0.00015999,2]
[350524423,1737943839611,-506.8883589,0.00015999,2]
[350524425,1737943839620,-515.10234372,0.00015999,2]
[350524427,1737943839631,-500.0,0.00015999,2]
[350524429,1737943839640,-525.52248868,0.00015999,2]
[350524431,1737943839650,-510.31532109,0.00015999,2]
[350524433,1737943839659,-511.01745639,0.00015999,2]
[350524435,1737943839669,-507.72321314,0.00015999,2]
[350524437,1737943839678,-500.0,0.00015999,2]
[350524439,1737943839688,-581.24889708,0.00015999,2]
[350524441,1737943839698,-500.0,0.00015999,2]
[350524443,1737943839708,-535.08746488,0.00015999,2]
[350524445,1737943839717,-510.16253959,0.00015999,2]
[350524447,1737943839726,-523.21018338,0.00015999,2]
[350524449,1737943839735,-289.08957072,0.00015999,2]
[350524451,1737943839747,-213.07469023,0.00015999,2]
[350524453,1737943839756,-501.88623869,0.00015999,2]
[350524455,1737943839766,-500.0,0.00015999,2]
[350524457,1737943839775,-523.77514457,0.00015999,2]
[350524459,1737943839784,-518.88251538,0.00015999,2]
[350524461,1737943839794,-507.94563339,0.00015999,2]
[350524463,1737943839803,-506.33069808,0.00015999,2]
[350524465,1737943839813,-505.45144984,0.00015999,2]
[350524467,1737943839822,-533.31930246,0.00015999,2]
[350524469,1737943839831,-520.95320172,0.00015999,2]
[350524471,1737943839841,-513.47424811,0.00015999,2]
[350524473,1737943839851,-233.64591656,0.00015999,2]
[350524475,1737943839860,-220.92226436,0.00015999,2]
[350524477,1737943839874,-505.12502206,0.00015999,2]
[350524480,1737943839884,-509.64751584,0.00015999,2]
[350524482,1737943839893,-517.75999697,0.00015999,2]
[350524484,1737943839903,-525.40768307,0.00015999,2]
[350524486,1737943839913,-516.70921924,0.00015999,2]
[350524488,1737943839925,-500.0,0.00015999,2]
[350524490,1737943839936,-507.4259922,0.00015999,2]
[350524492,1737943839946,-509.22801373,0.00015999,2]
[350524494,1737943839957,-500.0,0.00015999,2]
[350524495,1737943839967,-500.0,0.00015999,2]
[350524497,1737943839976,-501.30978335,0.00015999,2]
[350524499,1737943839985,-527.79500202,0.00015999,2]
[350524501,1737943839995,-500.0,0.00015999,2]
[350524503,1737943840004,-507.16007642,0.00015999,2]
[350524506,1737943840016,-166.92144122,0.00015999,2]
[350524508,1737943840026,-500.0,0.00015999,2]
[350524510,1737943840035,-512.34127438,0.00015999,2]
[350524512,1737943840046,-407.60882152,0.00015999,2]
[350524529,1737943840206,-100.82111786,0.00015999,2]
[350524531,1737943840216,-521.8011103,0.00015999,2]
[350524533,1737943840226,-500.0,0.00015999,2]
[350524535,1737943840236,-506.62276478,0.00015999,2]
[350524537,1737943840245,-500.0,0.00015999,2]
[350524539,1737943840254,-506.86977599,0.00015999,2]
[350524541,1737943840263,-513.67500212,0.00015999,2]
[350524543,1737943840278,-502.63783924,0.00015999,2]
[350524545,1737943840288,-547.32454246,0.00015999,2]
[350524547,1737943840298,-515.95452111,0.00015999,2]
[350524549,1737943840308,-515.8382537,0.00015999,2]
[350524551,1737943840318,-504.75232944,0.00015999,2]
[350524553,1737943840327,-504.47846358,0.00015999,2]
[350524555,1737943840336,-513.86936246,0.00015999,2]
[350524573,1737943840505,-502.33484272,0.00015999,2]
[350524575,1737943840518,-504.67137204,0.00015999,2]
[350524577,1737943840528,-418.01152925,0.00015999,2]
[350524579,1737943840542,-86.79378836,0.00015999,2]
[350524581,1737943840552,-500.0,0.00015999,2]
[350524583,1737943840562,-358.24701341,0.00015999,2]
[350524585,1737943840572,-510.19688534,0.00015999,2]
[350524587,1737943840582,-507.8633486,0.00015999,2]
[350524590,1737943840592,-580.09771685,0.00015999,2]
[350524591,1737943840602,-510.05127468,0.00015999,2]
[350524593,1737943840612,-504.16282776,0.00015999,2]
[350524596,1737943840622,-500.0,0.00015999,2]
[350524598,1737943840632,-506.08994357,0.00015999,2]
[350524600,1737943840641,-506.96634888,0.00015999,2]
[350524602,1737943840650,-500.0,0.00015999,2]
[350524604,1737943840660,-512.01475542,0.00015999,2]
[350524606,1737943840670,-96.24001024,0.00015999,2]
[350524608,1737943840682,-407.15647167,0.00015999,2]
[350524610,1737943840692,-297.05672338,0.00015999,2]
[350524612,1737943840704,-511.82735374,0.00015999,2]
[350524614,1737943840713,-511.8603565,0.00015999,2]
[350524616,1737943840723,-522.16623089,0.00015999,2]
[350524618,1737943840732,-504.7756402,0.00015999,2]
[350524620,1737943840742,-520.73385411,0.00015999,2]
[350524622,1737943840752,-411.03640072,0.00015999,2]
[350524624,1737943840761,-508.99131805,0.00015999,2]
[350524626,1737943840771,-509.72007636,0.00015999,2]
[350524628,1737943840782,-509.08407921,0.00015999,2]
[350524630,1737943840793,-521.14888325,0.00015999,2]
[350524632,1737943840804,-530.1213463,0.00015999,2]
[350524634,1737943840814,-526.50749844,0.00015999,2]
[350524636,1737943840825,-527.68522176,0.00015999,2]
[350524638,1737943840836,-512.15571879,0.00015999,2]
[350524640,1737943840847,-555.48268022,0.00015999,2]
[350524642,1737943840857,-528.91257607,0.00015999,2]
[350524644,1737943840866,-533.47247092,0.00015999,2]
[350524646,1737943840875,-537.34024695,0.00015999,2]
[350524648,1737943840885,-513.63040297,0.00015999,2]
[350524650,1737943840895,-538.10632082,0.00015999,2]
[350524652,1737943840905,-546.12027912,0.00015999,2]
[350524654,1737943840915,-510.39903692,0.00015999,2]
[350524656,1737943840927,-537.27163436,0.00015999,2]
[350524658,1737943840937,-538.91533103,0.00015999,2]
[350524660,1737943840949,-521.46813762,0.00015999,2]
[350524662,1737943840961,-331.53428962,0.00015999,2]
[350524664,1737943840971,-500.0,0.00015999,2]
[350524666,1737943840981,-263.23,0.00015999,2]
[350524668,1737943840992,-506.92745859,0.00015999,2]
[350524671,1737943841001,-500.0,0.00015999,2]
[350524673,1737943841013,-500.0,0.00015999,2]
[350524675,1737943841023,-604.66802211,0.00015999,2]
[350524677,1737943841033,-483.41353044,0.00015999,2]
[350524679,1737943841042,-507.24720322,0.00015999,2]
[350524681,1737943841051,-515.71871503,0.00015999,2]
[350524683,1737943841061,-508.82841558,0.00015999,2]
[350524685,1737943841070,-61.73381974,0.00015999,2]
[350524687,1737943841082,-450.1612104,0.00015999,2]
[350524689,1737943841091,-500.0,0.00015999,2]
[350524691,1737943841100,-33.1814503,0.00015999,2]
[350524693,1737943841112,-474.35478046,0.00015999,2]
[350524695,1737943841122,-502.82819827,0.00015999,2]
[350524697,1737943841132,-6.14675836,0.00015999,2]
[350524700,1737943841148,-499.93735888,0.00015999,2]
[350524702,1737943841158,-518.84167597,0.00015999,2]
[350524704,1737943841168,-225.12467721,0.00015999,2]
[350524706,1737943841178,-533.06993405,0.00015999,2]
[350524708,1737943841188,-1734.97635389,0.00015999,2]
[350524710,1737943841203,-68.40364611,0.00015999,2]
[350524712,1737943841212,-1803.38,0.00015999,2]
[350524714,1737943841222,-542.43843992,0.00015999,2]
[350524716,1737943841234,-1260.94156008,0.00015999,2]
[350524718,1737943841244,-1533.85035389,0.00015999,2]
[350524721,1737943841256,-269.52964611,0.00015999,2]
[350524723,1737943841266,-1215.47035389,0.00015999,2]
[350524726,1737943841289,-587.90964611,0.00015999,2]
[350524728,1737943841298,-50.2278539,0.00015999,2]
[350524730,1737943841311,-1753.1521461,0.00015999,2]
[350524732,1737943841320,-695.0313083,0.00015999,2]
[350524734,1737943841332,-1108.3486917,0.00015999,2]
[350524737,1737943841342,-1803.38,0.00015999,2]
[350524738,1737943841351,-1803.38,0.00015999,2]
[350524740,1737943841361,-1803.38,0.00015999,2]
[350524742,1737943841371,-1803.38,0.00015999,2]
[350524743,1737943841381,-1803.38,0.00015999,2]
[350524744,1737943841391,-500.0,0.00015999,2]
[350524745,1737943841400,-555.97,0.00015999,2]
[350524746,1737943841410,-514.7380842,0.00015999,2]
[350524747,1737943841420,-514.93648259,0.00015999,2]
[350524748,1737943841430,-505.56746224,0.00015999,2]
[350524749,1737943841440,-505.41102159,0.00015999,2]
[350524750,1737943841453,-500.0,0.00015999,2]
[350524752,1737943841463,-136.78386899,0.00015999,2]
[350524755,1737943841475,-371.72143511,0.00015999,2]
[350524757,1737943841485,-430.38946194,0.00015999,2]
[350524759,1737943841498,-73.53506009,0.00015999,2]
[350524761,1737943841507,-493.89366822,0.00015999,2]
[350524763,1737943841517,-444.77127169,0.00015999,2]
[350524767,1737943841614,-500.0,0.000157,5]
[350524768,1737943841624,-500.0,0.00015899,2]
[350524769,1737943841633,-55.22872831,0.00015999,2]
[350524770,1737943841643,-500.0,0.00015999,2]
[350524771,1737943841654,-579.78557005,0.00015999,2]
[350524772,1737943841663,-542.26794614,0.00015999,2]
[350524773,1737943841673,-544.71721018,0.00015999,2]
[350524774,1737943841682,-515.65697317,0.00015999,2]
[350524775,1737943841692,-543.25892962,0.00015999,2]
[350524776,1737943841704,-540.25829062,0.00015999,2]
[350524777,1737943841713,-363.29,0.00015999,2]
[350524778,1737943841723,-502.85659161,0.00015999,2]
[350524779,1737943841733,-194.04,0.00015999,2]
[350524780,1737943841742,-319.61277635,0.00015999,2]
[350524781,1737943841752,-500.0,0.00015999,2]
[350524782,1737943841761,-537.1366631,0.00015999,2]
[350524784,1737943841771,-481.96196286,0.00015999,2]
[350524786,1737943841781,-500.0,0.00015999,2]
[350524788,1737943841791,-419.56,0.00015999,2]
[350524790,1737943841800,-500.0,0.00015999,2]
[350524791,1737943841809,-569.26749727,0.00015999,2]
[350524793,1737943841819,-533.74,0.00015999,2]
[350524795,1737943841828,-581.80715055,0.00015999,2]
[350524797,1737943841838,-500.0,0.00015999,2]
[350524799,1737943841848,-210.79,0.00015999,2]
[350524800,1737943841858,-522.51028436,0.00015999,2]
[350524802,1737943841867,-500.0,0.00015999,2]
[350524804,1737943841877,-516.69782673,0.00015999,2]
[350524806,1737943841886,-500.0,0.00015999,2]
[350524807,1737943841896,-500.0,0.00015999,2]
[350524808,1737943841905,-516.93109937,0.00015999,2]
[350524809,1737943841915,-530.38441122,0.00015999,2]
[350524810,1737943841928,-500.0,0.00015999,2]
[350524811,1737943841938,-500.0,0.00015999,2]
[350524812,1737943841950,-299.0,0.00015999,2]
[350524813,1737943841963,-500.0,0.00015999,2]
[350524814,1737943841974,-500.0,0.00015999,2]
[350524815,1737943841983,-500.0,0.00015999,2]
[350524816,1737943841992,-500.0,0.00015999,2]
[350524817,1737943842006,-1019.0,0.00016,2]
[350524818,1737943842016,-14535.49595993,0.00016,15]
[350524819,1737943842027,-10028.64630661,0.00016,15]
[350524820,1737943842039,-407.2068,0.00016,15]
[350524821,1737943842051,-404.46412098,0.00016,15]
[350524822,1737943842062,-650.341599,0.00016,15]
[350524823,1737943842078,-900.000001,0.00016,15]
[350524824,1737943842089,-2027.2,0.00016,15]
[350524825,1737943842101,-399.845,0.00016,15]
[350524826,1737943842112,-7260.927576,0.00016,15]
[350524827,1737943842124,-663.54000003,0.00016,15]
[350524838,1737943843327,-800.0,0.000158,5]
[350524839,1737943843336,-500.0,0.00015899,2]
[350524840,1737943843346,-500.0,0.00015899,2]
[350524841,1737943843355,-1100.0,0.000159,5]
[350524842,1737943843365,-500.0,0.00015999,2]
[350524843,1737943843374,-500.0,0.00015999,2]
[350524844,1737943843383,-500.0,0.00015999,2]
[350524845,1737943843393,-609.39,0.00015999,2]
[350524846,1737943843402,-500.0,0.00015999,2]
[350524847,1737943843411,-500.0,0.00015999,2]
[350524848,1737943843420,-500.0,0.00015999,2]
[350524849,1737943843429,-500.0,0.00015999,2]
[350524850,1737943843438,-500.0,0.00015999,2]
[350524851,1737943843448,-1484.04420318,0.00016,15]
[350524852,1737943843460,-63600.0000001,0.00016,15]
[350524853,1737943843540,-5461.48,0.00016,15]
[350524854,1737943843551,-1124.999955,0.00016,15]
[350524969,1737943845609,-161.572601,0.0001595,3]
[350524971,1737943845620,-161.572601,0.0001595,3]
[350524973,1737943845629,-161.572601,0.0001595,3]
[350524975,1737943845640,-161.572601,0.0001595,3]
[350524977,1737943845651,-19694.309596,0.00016,15]
[350524978,1737943845770,-266.46413695,0.00016,15]
[350524979,1737943845984,-2989.522255,0.00016,15]
[350525008,1737944648098,199.99,0.00016658,30]
[350525306,1737945031810,-802.204925,9.95e-05,2]
[350525307,1737945031820,-246.85012059,9.973e-05,2]
[350525308,1737945031917,-253.14987941,9.973e-05,2]
[350525309,1737945031927,-150.0,9.999e-05,2]
[350525310,1737945031936,-1125.21369499,0.0001,2]
[350525311,1737945031972,-102.07616737,0.0001,2]
[350525312,1737945031981,-2873.39064884,0.0001,2]
[350525313,1737945031993,-250.22877249,0.0001,2]
[350525314,1737945032031,-1739.89551757,0.0001,2]
[350525315,1737945032136,-30525.89909997,0.0001,2]
[350525316,1737945032248,-354640.05960145,0.0001,2]
[350525391,1737945037822,-301.54128204,0.0001,2]
[350525392,1737945037884,-454.7054688,0.0001,2]
[350525393,1737945037935,-992.83322886,0.0001,2]
[350525397,1737945039962,-6557.11371539,0.0001,2]
[350525398,1737945039974,-1524.595758,0.0001,2]
[350525411,1737945042935,-297.22037181,0.0001,2]
[350525564,1737945246136,445.49,9.286e-05,2]
[350525565,1737945690878,150.0,0.00021076,120]
[350525566,1737945826325,189.99,0.00016658,30]
[350525580,1737946231992,-497.65536239,9.8e-05,2]
[350525581,1737946232045,-902.4399545,9.8e-05,2]
[350525582,1737946232056,-333.51568311,9.8e-05,2]
[350525583,1737946232065,-5674.8818,9.9e-05,2]
[350525584,1737946232074,-10849.4363,9.9e-05,2]
[350525585,1737946232083,-540.9285,9.9e-05,2]
[350525586,1737946232093,-187.69906417,9.9e-05,2]
[350525587,1737946232102,-10482.70784591,9.9e-05,2]
[350525588,1737946232111,-150.0,9.972e-05,2]
[350525589,1737946232121,-150.0,9.973e-05,2]
[350525590,1737946232129,-500.60170934,9.973e-05,2]
[350525591,1737946232139,-500.0,9.973e-05,2]
[350525592,1737946232148,-500.0,9.973e-05,2]
[350525593,1737946232157,-729.11026486,9.999e-05,2]
[350525594,1737946232168,-553.56746901,9.999e-05,2]
[350525595,1737946232177,-447920.72823645,0.0001,2]
[350525596,1737946232189,-50603.64841586,0.0001,2]
[350525597,1737946232202,-10368.3028853,0.0001,2]
[350525598,1737946232213,-9930.54989418,0.0001,2]
[350525599,1737946232233,-18589.83149921,0.0001,2]
[350525600,1737946232245,-276.77515906,0.0001,2]
[350525601,1737946232261,-300.0,0.0001,2]
[350525602,1737946232272,-10183.0,0.0001,2]
[350525606,1737946232484,-6338.60000004,0.0001,2]
[350525607,1737946232496,-3971.61004956,0.0001,2]
[350525609,1737946237844,-11035.45949439,0.0001,2]
[350525610,1737946237856,-973.74341599,0.0001,2]
[350525611,1737946237869,-442.20931429,0.0001,2]
[350525612,1737946237898,-4373.16508401,0.0001,2]
[350525613,1737946237912,-331281.68411508,0.0001,2]
[350525614,1737946237930,-959.25067135,0.0001,2]
[350525615,1737946237942,-641.17075531,0.0001,2]
[350525616,1737946237954,-3781.80225101,0.0001,2]
[350525617,1737946237965,-7561.77677172,0.0001,2]
[350525618,1737946238062,-4969.168468,0.0001,2]
[350525619,1737946238073,-11341.45376007,0.0001,2]
[350525620,1737946238115,-525.39213724,0.0001,2]
[350525621,1737946238128,-932.91096681,0.0001,2]
[350525823,1737946239905,-2254.030016,0.0001,2]
[350525830,1737946239960,-11976.871695,0.0001,2]
[350525832,1737946239972,-6462.98271194,0.0001,2]
[350525838,1737946240017,-463.72725999,0.0001,2]
[350525840,1737946240028,-306.94443232,0.0001,2]
[350525846,1737946240072,-507.2111652,0.0001,2]
[350525848,1737946240083,-5010.0,0.0001,2]
[350525854,1737946240127,-182637.56054176,0.0001,2]
[350525878,1737946240340,-1136.05809784,0.0001,2]
[350526172,1737946242918,-2832.2,0.0001,2]
[350526178,1737946242971,-3399.9997,0.0001,2]
[350526180,1737946242982,-20046.8483197,0.0001,2]
[350526186,1737946243025,-499.26982462,0.0001,2]
[350526204,1737946243183,-25277.50000001,0.0001,2]
[350526481,1737946245861,-437.16188932,0.0001,2]
[350526502,1737946246021,-307.82025823,0.0001,2]
[350526504,1737946246033,-279.07872063,0.0001,2]
[350526506,1737946246043,-352.65593336,0.0001,2]
[350526508,1737946246054,-3061.1710807,0.0001,2]
[350526517,1737946246130,-390.6861449,0.0001,2]
[350526519,1737946246142,-10165.02107922,0.0001,2]
[350527264,1737946336620,453.62,8.306e-05,2]
[350527268,1737946671318,5000.0,9.503e-05,2]
[350527269,1737946822861,180.49,0.00016658,30]
[350527270,1737946971881,-162.04,9.77e-05,2]
[350527271,1737946971907,-525.811,9.9e-05,2]
[350527272,1737946971929,-190.6,9.901e-05,2]
[350527273,1737946971951,-237.32764282,9.95e-05,2]
[350527274,1737946971974,-300.0,9.957e-05,2]
[350527275,1737946971999,-23890.0,9.958e-05,2]
[350527276,1737946972022,-500.0,9.973e-05,2]
[350527277,1737946972043,-10037.5053246,9.999e-05,2]
[350527278,1737946972065,-150.0,9.999e-05,2]
[350527279,1737946972087,-964006.71603258,0.0001,2]
[350527280,1737946983216,-300.0,9.999e-05,2]
[350527281,1737946983241,-150.0,9.999e-05,2]
[350527282,1737946983270,-999550.0,0.0001,2]
[350527283,1737946994427,-1000080.0,0.0001,2]
[350527284,1737947043681,-500000.0,0.0001,2]
[350527285,1737947118155,-17709.0,0.0001,2]
[350527556,1737947432128,-150.0,9.999e-05,2]
[350527557,1737947432139,-500.0,9.999e-05,2]
[350527558,1737947432149,-253.28121296,9.999e-05,2]
[350527559,1737947432159,-12787.81552984,0.0001,2]
[350527560,1737947432182,-289.125,0.0001,2]
[350527561,1737947432237,-1008.1,0.0001,2]
[350527562,1737947432249,-1642.4716385,0.0001,2]
[350527563,1737947432397,-2076.78358511,0.0001,2]
[350527564,1737947436423,-77688.14688868,0.0001,2]
[350527565,1737947436434,-4125.935,0.0001,2]
[350527566,1737947436445,-20410.0,0.0001,2]
[350527567,1737947436469,-479.87529719,0.0001,2]
[350527569,1737947436480,-403.59055425,0.0001,2]
[350527571,1737947436491,-33272.16141094,0.0001,2]
[350527573,1737947436502,-5201.88995044,0.0001,2]
[350527718,1737947437993,-523.3228,0.0001,2]
[350527729,1737947438101,-394.67500275,0.0001,2]
[350527730,1737947438156,-5092.4296215,0.0001,2]
[350527731,1737947438167,-1316.93510905,0.0001,2]
[350527732,1737947438214,-671.72270315,0.0001,2]
[350527907,1737947440154,-581.79652891,0.0001,2]
[350527909,1737947440165,-625.34,0.0001,2]
[350527915,1737947440208,-6047.70703528,0.0001,2]
[350527928,1737947440314,-8565.4008585,0.0001,2]
[350527930,1737947440325,-5259.08523953,0.0001,2]
[350527932,1737947440337,-631.64179635,0.0001,2]
[350527937,1737947440372,-6664.5727,0.0001,2]
[350527945,1737947440438,-582.26500129,0.0001,2]
[350527947,1737947440448,-302.88258,0.0001,2]
[350528211,1737947442999,-73512.48645387,0.0001,2]
[350528231,1737947443105,-1118.30873422,0.0001,2]
[350528233,1737947443118,-1060.54499947,0.0001,2]
[350528244,1737947443211,-597.50135419,0.0001,2]
[350528258,1737947443318,-460.84255453,0.0001,2]
[350528261,1737947443329,-970.6059146,0.0001,2]
[350528269,1737947443371,-717.8093996,0.0001,2]
[350528537,1737947446050,-2013.2708,0.0001,2]
[350528555,1737947446209,-300.0,9.9e-05,3]
[350528557,1737947446219,-4759.0,0.0001,2]
[350528575,1737947446374,-775.72086181,0.0001,2]
[350528587,1737947446477,-556.12652727,0.0001,2]
[350530132,1737947462518,430.93,8.219e-05,2]
[350530294,1737947687475,171.46,0.00016658,30]
[350530297,1737947731609,10000.0,0.00022,120]
[350530300,1737947832841,-300.0,9.9e-05,3]
[350530301,1737947832865,-1000.0,9.97e-05,2]
[350530302,1737947832886,-500.0,9.973e-05,2]
[350530303,1737947832908,-150.0,9.999e-05,2]
[350530304,1737947832930,-23050.0,0.0001,2]
[350530490,1737948596154,409.38,8.219e-05,2]
[350530491,1737948631520,162.88,0.00016658,30]
[350530504,1737948632360,-582.56,9.789e-05,2]
[350530505,1737948632369,-1469.28,9.8e-05,2]
[350530506,1737948632379,-250.0,9.879e-05,2]
[350530507,1737948632392,-600.0,9.9e-05,3]
[350530508,1737948632401,-160.19207949,9.973e-05,2]
[350530509,1737948632410,-500.0,9.973e-05,2]
[350530510,1737948632419,-300.0,9.999e-05,2]
[350530511,1737948632429,-150.0,9.999e-05,2]
[350530512,1737948632438,-8271.38917839,0.0001,2]
[350530513,1737948632449,-1206.400012,0.0001,2]
[350530514,1737948632472,-4760.26322365,0.0001,2]
[350530515,1737948634118,-8158.74568798,0.0001,2]
[350530516,1737948634130,-255.33146092,0.0001,2]
[350530517,1737948634280,-3425.7128197,0.0001,2]
[350530589,1737948638274,-10520.36675417,0.0001,2]
[350530590,1737948638286,-16131.68368021,0.0001,2]
[350530591,1737948638330,-8897.33288894,0.0001,2]
[350530592,1737948638341,-10591.17998013,0.0001,2]
[350530593,1737948638391,-86104.50879895,0.0001,2]
[350530594,1737948638445,-13806.79721775,0.0001,2]
[350530595,1737948638456,-1003.62448324,0.0001,2]
[350530596,1737948638468,-1071131.14944919,0.0001,2]
[350530597,1737948638477,-194.7061421,0.0001,2]
[350530598,1737948638487,-500.0,0.0001,2]
[350530599,1737948638497,-72877.60951084,0.0001,2]